[Event "1000GM Spring IM-C 2024"]
[Site "New York"]
[Date "2024.03.29"]
[Round "3.1"]
[White "Tanenbaum, Zachary"]
[Black "Pang, Qi"]
[Result "1/2-1/2"]
[ECO "C50"]
[WhiteElo "2260"]
[BlackElo "2195"]
[Annotator "RC"]
[PlyCount "49"]
[EventDate "2024.03.26"]
[EventType "tourn"]
[EventCountry "USA"]
[SourceTitle "playchess.com"]
[Source "ChessBase"]
[SourceQuality "1"]
[TimeControl "5400+30"]

1. e4 {[%emt 0:00:50]} e5 {[%emt 0:02:54]} 2. Nf3 {[%emt 0:00:03]} Nc6 {[%emt 0:00:06]} 3. Bc4 {[%emt 0:00:01]} Bc5 {[%emt 0:00:10]} 4. d3 {[%emt 0:00:01]} Nf6 {[%emt 0:00:14]} 5. Nc3 {[%emt 0:00:01]} h6 {[%emt 0:01:04]} 6. O-O {[%emt 0:00:06]} O-O {[%emt 0:00:13]} 7. h3 {[%emt 0:00:14]} d6 {[%emt 0:06:15]} 8. Na4 {[%emt 0:00:34]} Bb6 {[%emt 0:00:10]} 9. a3 {[%emt 0:00:12]} Re8 {[%emt 0:01:37]} 10. Re1 {[%emt 0:01:52]} Be6 {[%emt 0:00:46]} 11. Bxe6 {[%emt 0:01:03]} Rxe6 {[%emt 0:00:05]} 12. b4 {[%emt 0:01:16]} Nd4 {[%emt 0:06:23]} 13. Nxd4 {[%emt 0:15:13]} Bxd4 {[%emt 0:00:10]} 14. c3 {[%emt 0:00:10]} Bb6 {[%emt 0:00:01]} 15. Bb2 {[%emt 0:01:49]} c6 {[%emt 0:00:33]} 16. Nxb6 {[%emt 0:00:24]} Qxb6 {[%emt 0:00:18]} 17. c4 {[%emt 0:00:52]} Rae8 {[%emt 0:01:35]} 18. d4 {[%emt 0:10:19]} exd4 {[%emt 0:00:33]} 19. Bxd4 {[%emt 0:00:24]} Qa6 {[%emt 0:00:08]} 20. Bxf6 {[%emt 0:11:41]} Rxf6 {[%emt 0:00:05]} 21. Qd4 {[%emt 0:04:25]} Rfe6 {[%emt 0:03:40]} 22. Re3 {[%emt 0:04:09]} c5 {[%emt 0:18:03]} 23. bxc5 {[%emt 0:02:58]} dxc5 {[%emt 0:00:12]} 24. Qxc5 {[%emt 0:04:58]} Rxe4 {[%emt 0:01:55]} 25. Rae1 {[%emt 0:04:49]} 1/2-1/2

[Event "1000GM Spring IM-C 2024"]
[Site "New York"]
[Date "2024.03.29"]
[Round "3.2"]
[White "Savanovic, Aleksandar"]
[Black "Yang, Qindong"]
[Result "1/2-1/2"]
[ECO "B96"]
[WhiteElo "2361"]
[BlackElo "2234"]
[Annotator "RC"]
[PlyCount "57"]
[EventDate "2024.03.26"]
[EventType "tourn"]
[EventCountry "USA"]
[SourceTitle "playchess.com"]
[Source "ChessBase"]
[SourceQuality "1"]
[TimeControl "5400+30"]

1. e4 {[%emt 0:00:30]} c5 {[%emt 0:04:22]} 2. Nf3 {[%emt 0:00:00]} d6 {[%emt 1:27:08]} 3. d4 {[%emt 0:00:00]} cxd4 {[%emt 0:00:00]} 4. Nxd4 {[%emt 0:00:02]} Nf6 {[%emt 0:00:00]} 5. Nc3 {[%emt 0:00:05]} a6 {[%emt 0:00:00]} 6. Bg5 {[%emt 0:00:33]} e6 {[%emt 0:00:00]} 7. f4 {[%emt 0:00:10]} h6 {[%emt 0:00:00]} 8. Bh4 {[%emt 0:00:10]} Qb6 {[%emt 0:00:00]} 9. Qd2 {[%emt 0:01:12]} Qxb2 {[%emt 0:00:00]} 10. Rb1 {[%emt 0:00:10]} Qa3 {[%emt 0:00:00]} 11. f5 {[%emt 0:00:21]} Be7 {[%emt 0:00:00]} 12. fxe6 {[%emt 0:00:28]} fxe6 {[%emt 0:00:00]} 13. Bc4 {[%emt 0:01:25]} Nxe4 {[%emt 0:00:00]} 14. Nxe4 {[%emt 0:00:08]} Bxh4+ {[%emt 0:00:00]} 15. g3 {[%emt 0:00:09]} Bg5 {[%emt 0:00:00]} 16. Nxg5 {[%emt 0:00:07]} hxg5 {[%emt 0:00:00]} 17. O-O {[%emt 0:00:06]} Qc5 {[%emt 0:00:00]} 18. Bxe6 {[%emt 0:03:31]} Bxe6 {[%emt 0:00:00]} 19. Rbe1 {[%emt 0:01:15]} Rh6 {[%emt 0:00:00]} 20. Rf5 {[%emt 0:00:52]} Qc4 {[%emt 0:00:00]} 21. Qe3 {[%emt 0:20:03]} Kd7 {[%emt 0:00:00]} 22. Rxg5 {[%emt 0:01:21]} Nc6 {[%emt 0:00:00]} 23. Rxg7+ {[%emt 0:02:26]} Bf7 {[%emt 0:00:00]} 24. Nxc6 {[%emt 0:01:36]} Kxc6 {[%emt 0:00:00]} 25. Qxh6 {[%emt 0:14:45]} Qd4+ {[%emt 0:00:00]} 26. Kg2 {[%emt 0:00:04]} Qd5+ {[%emt 0:00:00]} 27. Kg1 {[%emt 0:14:52]} Qd4+ {[%emt 0:00:00]} 28. Kg2 {[%emt 0:04:14]} Qd5+ {[%emt 0:00:00]} 29. Kg1 {[%emt 0:00:58]} 1/2-1/2

[Event "1000GM Spring IM-C 2024"]
[Site "New York"]
[Date "2024.03.29"]
[Round "3.3"]
[White "Shundi, Matias"]
[Black "Tang, Zoey"]
[Result "1/2-1/2"]
[ECO "B22"]
[WhiteElo "2191"]
[BlackElo "2253"]
[Annotator "RC"]
[PlyCount "228"]
[EventDate "2024.03.26"]
[EventType "tourn"]
[EventCountry "USA"]
[SourceTitle "playchess.com"]
[Source "ChessBase"]
[SourceQuality "1"]
[TimeControl "5400+30"]

1. e4 {[%emt 0:03:52]} c5 {[%emt 0:00:04]} 2. c3 {[%emt 0:00:12]} Nf6 {[%emt 0:00:34]} 3. e5 {[%emt 0:00:09]} Nd5 {[%emt 0:00:04]} 4. Nf3 {[%emt 0:00:09]} d6 {[%emt 0:04:16]} 5. Bb5+ {[%emt 0:00:44]} Bd7 {[%emt 0:00:19]} 6. Bc4 {[%emt 0:00:06]} e6 {[%emt 0:00:04]} 7. d4 {[%emt 0:00:15]} dxe5 {[%emt 0:00:29]} 8. Nxe5 {[%emt 0:00:43]} Nc6 {[%emt 0:03:07]} 9. O-O {[%emt 0:01:50]} Nxe5 {[%emt 0:04:59]} 10. dxe5 {[%emt 0:00:41]} Bc6 {[%emt 0:00:04]} 11. Re1 {[%emt 0:00:53]} Be7 {[%emt 0:01:33]} 12. Bf1 {[%emt 0:01:08]} Bg5 {[%emt 0:13:46]} 13. Nd2 {[%emt 0:04:57]} Bxd2 {[%emt 0:11:21]} 14. Bxd2 {[%emt 0:00:49]} Qc7 {[%emt 0:00:15]} 15. Qg4 {[%emt 0:10:00]} h5 {[%emt 0:00:38]} 16. Qc4 {[%emt 0:09:35]} Qe7 {[%emt 0:02:44]} 17. b4 {[%emt 0:05:13]} cxb4 {[%emt 0:05:23]} 18. cxb4 {[%emt 0:00:18]} a6 {[%emt 0:00:06]} 19. a4 {[%emt 0:06:40]} O-O {[%emt 0:11:15]} 20. b5 {[%emt 0:03:05]} Bd7 {[%emt 0:00:02]} 21. Qe4 {[%emt 0:02:03]} f5 {[%emt 0:11:41]} 22. exf6 {[%emt 0:00:52]} Qxf6 {[%emt 0:00:04]} 23. f3 {[%emt 0:07:41]} axb5 {[%emt 0:02:14]} 24. Bd3 {[%emt 0:03:03]} g6 {[%emt 0:01:03]} 25. a5 {[%emt 0:01:53]} Kh7 {[%emt 0:03:18]} 26. h4 {[%emt 0:12:36]} Bc6 {[%emt 0:02:30]} 27. Bg5 {[%emt 0:02:48]} Qg7 {[%emt 0:00:42]} 28. Qe5 {[%emt 0:07:52]} Rfe8 {[%emt 0:06:06]} 29. Qe2 {[%emt 0:03:56]} e5 {[%emt 0:02:58]} 30. Rec1 {[%emt 0:02:30]} e4 {[%emt 0:02:56]} 31. Bxe4 {[%emt 0:00:37]} Nc3 {[%emt 0:00:31]} 32. Qb2 {[%emt 0:01:09]} b4 {[%emt 0:03:15]} 33. Re1 {[%emt 0:04:25]} Nxe4 {[%emt 0:02:54]} 34. Qxg7+ {[%emt 0:00:06]} Kxg7 {[%emt 0:00:03]} 35. fxe4 {[%emt 0:00:09]} Bxe4 {[%emt 0:01:09]} 36. Ra4 {[%emt 0:01:40]} Bc6 {[%emt 0:02:00]} 37. Rxe8 {[%emt 0:00:08]} Rxe8 {[%emt 0:00:06]} 38. Rxb4 {[%emt 0:00:08]} Re2 {[%emt 0:00:16]} 39. Kf1 {[%emt 0:03:06]} Rxg2 {[%emt 0:01:34]} 40. Rb6 {[%emt 0:00:25]} Ra2 {[%emt 0:00:48]} 41. a6 {[%emt 0:01:17]} Bg2+ {[%emt 0:01:00]} 42. Kg1 {[%emt 0:00:25]} bxa6 {[%emt 0:00:06]} 43. Rd6 {[%emt 0:00:11]} Be4 {[%emt 0:00:40]} 44. Rd7+ {[%emt 0:00:31]} Kg8 {[%emt 0:00:47]} 45. Re7 {[%emt 0:00:37]} Bf5 {[%emt 0:00:27]} 46. Bf6 {[%emt 0:00:49]} a5 {[%emt 0:00:50]} 47. Ra7 {[%emt 0:00:31]} a4 {[%emt 0:00:20]} 48. Kf1 {[%emt 0:00:19]} a3 {[%emt 0:02:19]} 49. Be7 {[%emt 0:01:00]} Ra1+ {[%emt 0:00:40]} 50. Ke2 {[%emt 0:00:29]} a2 {[%emt 0:00:09]} 51. Bf6 {[%emt 0:00:07]} Rh1 {[%emt 0:00:10]} 52. Ke3 {[%emt 0:00:17]} Be6 {[%emt 0:00:37]} 53. Kf4 {[%emt 0:01:03]} Rg1 {[%emt 0:00:31]} 54. Ke4 {[%emt 0:00:38]} Bb3 {[%emt 0:00:42]} 55. Kd3 {[%emt 0:00:37]} Rf1 {[%emt 0:00:29]} 56. Bb2 {[%emt 0:00:27]} Kf8 {[%emt 0:00:41]} 57. Be5 {[%emt 0:00:32]} Rd1+ {[%emt 0:00:30]} 58. Ke2 {[%emt 0:00:32]} Rh1 {[%emt 0:00:27]} 59. Bf6 {[%emt 0:00:11]} Bc4+ {[%emt 0:00:15]} 60. Ke3 {[%emt 0:00:08]} Rf1 {[%emt 0:00:15]} 61. Be5 {[%emt 0:01:08]} Ke8 {[%emt 0:00:47]} 62. Bd4 {[%emt 0:00:36]} Bd5 {[%emt 0:00:15]} 63. Bb2 {[%emt 0:00:29]} Rb1 {[%emt 0:00:16]} 64. Bc3 {[%emt 0:00:12]} Rd1 {[%emt 0:00:40]} 65. Bf6 {[%emt 0:00:23]} Rf1 {[%emt 0:00:37]} 66. Bb2 {[%emt 0:00:22]} Kd8 {[%emt 0:00:41]} 67. Kd4 {[%emt 0:00:13]} Bb3 {[%emt 0:00:25]} 68. Kc5 {[%emt 0:00:17]} Re1 {[%emt 0:01:04]} 69. Kd6 {[%emt 0:01:11]} Re6+ {[%emt 0:00:21]} 70. Kc5 {[%emt 0:00:06]} Re2 {[%emt 0:00:05]} 71. Bd4 {[%emt 0:00:51]} Ke8 {[%emt 0:00:45]} 72. Ra3 {[%emt 0:00:47]} Bg8 {[%emt 0:00:51]} 73. Ra7 {[%emt 0:00:25]} Re4 {[%emt 0:00:28]} 74. Bf6 {[%emt 0:00:41]} Bb3 {[%emt 0:00:18]} 75. Rb7 {[%emt 0:00:36]} Re1 {[%emt 0:00:48]} 76. Rxb3 {[%emt 0:00:28]} a1=Q {[%emt 0:01:03]} 77. Bxa1 {[%emt 0:00:02]} Rxa1 {[%emt 0:00:00]} 78. Rb7 {[%emt 0:00:24]} Kf8 {[%emt 0:00:02]} 79. Kd6 {[%emt 0:00:32]} Re1 {[%emt 0:00:16]} 80. Kd5 {[%emt 0:00:34]} Kg8 {[%emt 0:00:15]} 81. Ra7 {[%emt 0:00:46]} Re2 {[%emt 0:00:22]} 82. Rb7 {[%emt 0:00:08]} Rh2 {[%emt 0:00:36]} 83. Rb4 {[%emt 0:00:40]} Kg7 {[%emt 0:00:47]} 84. Ke5 {[%emt 0:00:14]} Rg2 {[%emt 0:00:42]} 85. Rc4 {[%emt 0:00:53]} Kh6 {[%emt 0:00:19]} 86. Ra4 {[%emt 0:00:22]} Rf2 {[%emt 0:00:55]} 87. Rf4 {[%emt 0:00:53]} Re2+ {[%emt 0:00:40]} 88. Re4 {[%emt 0:00:24]} Ra2 {[%emt 0:00:16]} 89. Kf4 {[%emt 0:00:28]} Kg7 {[%emt 0:00:16]} 90. Rb4 {[%emt 0:00:28]} Rf2+ {[%emt 0:00:11]} 91. Kg3 {[%emt 0:00:12]} Re2 {[%emt 0:00:20]} 92. Rf4 {[%emt 0:00:35]} Re3+ {[%emt 0:00:24]} 93. Kg2 {[%emt 0:00:20]} Rd3 {[%emt 0:01:05]} 94. Kh2 {[%emt 0:00:10]} Rd5 {[%emt 0:00:24]} 95. Kg3 {[%emt 0:00:15]} Rf5 {[%emt 0:00:26]} 96. Ra4 {[%emt 0:00:10]} Rf1 {[%emt 0:00:34]} 97. Rf4 {[%emt 0:00:45]} Rg1+ {[%emt 0:00:46]} 98. Kf2 {[%emt 0:00:17]} Ra1 {[%emt 0:00:30]} 99. Kg3 {[%emt 0:00:12]} g5 {[%emt 0:00:28]} 100. hxg5 {[%emt 0:00:14]} Kg6 {[%emt 0:00:03]} 101. Rb4 {[%emt 0:00:23]} Rg1+ {[%emt 0:00:10]} 102. Kh3 {[%emt 0:00:18]} Kxg5 {[%emt 0:00:15]} 103. Rb5+ {[%emt 0:00:06]} Kg6 {[%emt 0:00:05]} 104. Rb6+ {[%emt 0:00:04]} Kg5 {[%emt 0:00:04]} 105. Rb5+ {[%emt 0:00:06]} Kf4 {[%emt 0:00:03]} 106. Rb4+ {[%emt 0:00:10]} Kf3 {[%emt 0:00:10]} 107. Rb3+ {[%emt 0:00:05]} Ke2 {[%emt 0:00:20]} 108. Rb2+ {[%emt 0:00:08]} Kd3 {[%emt 0:00:05]} 109. Rb3+ {[%emt 0:00:19]} Kc4 {[%emt 0:00:06]} 110. Rg3 {[%emt 0:00:09]} Rh1+ {[%emt 0:00:06]} 111. Kg2 {[%emt 0:00:05]} Ra1 {[%emt 0:00:04]} 112. Rg5 {[%emt 0:00:15]} h4 {[%emt 0:00:06]} 113. Rg4+ {[%emt 0:00:04]} Kd5 {[%emt 0:00:03]} 114. Rxh4 {[%emt 0:00:06]} Ra2+ {[%emt 0:00:02]} 1/2-1/2

[Event "1000GM Spring IM-C 2024"]
[Site "New York"]
[Date "2024.03.29"]
[Round "3.4"]
[White "Yudasin, Leonid"]
[Black "Atwell, Rose"]
[Result "1-0"]
[ECO "C55"]
[WhiteElo "2337"]
[BlackElo "2285"]
[Annotator "RC"]
[PlyCount "89"]
[EventDate "2024.03.26"]
[EventType "tourn"]
[EventCountry "USA"]
[SourceTitle "playchess.com"]
[Source "ChessBase"]
[SourceQuality "1"]
[TimeControl "5400+30"]

1. e4 {[%emt 0:00:03]} e5 {[%emt 0:00:04]} 2. Bc4 {[%emt 0:00:10]} Nf6 {[%emt 0:00:06]} 3. d3 {[%emt 0:00:10]} Nc6 {[%emt 0:01:47]} 4. Nf3 {[%emt 0:00:51]} Be7 {[%emt 0:03:34]} 5. O-O {[%emt 0:02:23]} d6 {[%emt 0:01:57]} 6. c3 {[%emt 0:03:04]} Be6 {[%emt 0:06:07]} 7. Nbd2 {[%emt 0:04:24]} Qd7 {[%emt 0:02:50]} 8. Re1 {[%emt 0:01:16]} O-O {[%emt 0:10:34]} 9. a4 {[%emt 0:01:41]} a5 {[%emt 0:03:46]} 10. Bb5 {[%emt 0:06:20]} Qc8 {[%emt 0:02:40]} 11. Nf1 {[%emt 0:01:55]} Nd8 {[%emt 0:03:05]} 12. d4 {[%emt 0:00:55]} c6 {[%emt 0:03:06]} 13. Bd3 {[%emt 0:02:52]} Nd7 {[%emt 0:03:53]} 14. Ne3 {[%emt 0:02:39]} f6 {[%emt 0:01:53]} 15. Bc4 {[%emt 0:10:35]} Bxc4 {[%emt 0:04:40]} 16. Nxc4 {[%emt 0:01:59]} Nf7 {[%emt 0:02:00]} 17. Ne3 {[%emt 0:06:17]} Re8 {[%emt 0:03:40]} 18. b3 {[%emt 0:06:20]} Nf8 {[%emt 0:07:17]} 19. Ba3 {[%emt 0:02:40]} Ne6 {[%emt 0:02:40]} 20. d5 {[%emt 0:00:55]} Nf4 {[%emt 0:03:24]} 21. g3 {[%emt 0:03:51]} Nh3+ {[%emt 0:05:36]} 22. Kg2 {[%emt 0:01:11]} Nhg5 {[%emt 0:00:59]} 23. Nxg5 {[%emt 0:01:39]} fxg5 {[%emt 0:01:35]} 24. h3 {[%emt 0:06:00]} g6 {[%emt 0:02:05]} 25. Qd3 {[%emt 0:01:24]} c5 {[%emt 0:02:19]} 26. Qb5 {[%emt 0:10:43]} Rf8 {[%emt 0:04:36]} 27. b4 {[%emt 0:00:26]} cxb4 {[%emt 0:01:19]} 28. cxb4 {[%emt 0:00:02]} Qc3 {[%emt 0:02:34]} 29. bxa5 {[%emt 0:03:49]} Nd8 {[%emt 0:02:30]} 30. Qb4 {[%emt 0:01:15]} Qc7 {[%emt 0:00:48]} 31. Nc4 {[%emt 0:01:38]} Nf7 {[%emt 0:00:56]} 32. Rac1 {[%emt 0:02:03]} Qd8 {[%emt 0:01:45]} 33. Qxb7 {[%emt 0:00:50]} Rb8 {[%emt 0:00:10]} 34. Qc6 {[%emt 0:00:53]} Rc8 {[%emt 0:00:32]} 35. Qb6 {[%emt 0:00:09]} Qd7 {[%emt 0:00:21]} 36. Qb5 {[%emt 0:00:03]} Qa7 {[%emt 0:00:13]} 37. Nb6 {[%emt 0:00:03]} Rb8 {[%emt 0:00:28]} 38. Rc6 {[%emt 0:05:31]} g4 {[%emt 0:02:21]} 39. hxg4 {[%emt 0:00:21]} Ng5 {[%emt 0:00:10]} 40. Re3 {[%emt 0:01:31]} Rf6 {[%emt 0:00:33]} 41. Rc8+ {[%emt 0:01:32]} Kg7 {[%emt 0:01:26]} 42. Rxb8 {[%emt 0:00:18]} Qxb8 {[%emt 0:00:07]} 43. Nd7 {[%emt 0:00:17]} Qxb5 {[%emt 0:01:35]} 44. axb5 {[%emt 0:00:05]} Rf7 {[%emt 0:00:06]} 45. a6 {[%emt 0:00:27]} 1-0

[Event "1000GM Spring IM-C 2024"]
[Site "New York"]
[Date "2024.03.29"]
[Round "3.5"]
[White "Andrews, Todd"]
[Black "Lekic, Dusan"]
[Result "0-1"]
[ECO "C84"]
[WhiteElo "2160"]
[BlackElo "2320"]
[Annotator "RC"]
[PlyCount "88"]
[EventDate "2024.03.26"]
[EventType "tourn"]
[EventCountry "USA"]
[SourceTitle "playchess.com"]
[Source "ChessBase"]
[SourceQuality "1"]
[TimeControl "5400+30"]

1. e4 {[%emt 0:00:04]} e5 {[%emt 0:00:16]} 2. Nf3 {[%emt 0:00:17]} Nc6 {[%emt 0:00:09]} 3. Bb5 {[%emt 0:00:11]} a6 {[%emt 0:00:05]} 4. Ba4 {[%emt 0:00:08]} Nf6 {[%emt 0:00:14]} 5. O-O {[%emt 0:00:09]} Be7 {[%emt 0:00:07]} 6. d4 {[%emt 0:00:15]} exd4 {[%emt 0:02:08]} 7. Re1 {[%emt 0:00:15]} b5 {[%emt 0:02:36]} 8. Bb3 {[%emt 0:02:10]} d6 {[%emt 0:00:53]} 9. Bd5 {[%emt 0:13:29]} Nxd5 {[%emt 0:01:17]} 10. exd5 {[%emt 0:00:05]} Ne5 {[%emt 0:00:09]} 11. Nxd4 {[%emt 0:00:39]} Bg4 {[%emt 0:00:33]} 12. f3 {[%emt 0:00:55]} Bd7 {[%emt 0:00:42]} 13. f4 {[%emt 0:02:53]} Ng6 {[%emt 0:03:52]} 14. Nc3 {[%emt 0:08:05]} O-O {[%emt 0:01:20]} 15. Nc6 {[%emt 0:11:57]} Bxc6 {[%emt 0:19:01]} 16. dxc6 {[%emt 0:00:16]} Bh4 {[%emt 0:00:12]} 17. g3 {[%emt 0:01:02]} Bf6 {[%emt 0:03:41]} 18. Nd5 {[%emt 0:01:21]} Ne7 {[%emt 0:04:57]} 19. Nxf6+ {[%emt 0:05:25]} gxf6 {[%emt 0:00:08]} 20. Qg4+ Kh8 {[%emt 0:00:30]} 21. b3 Nxc6 {[%emt 0:00:30]} 22. Bb2 d5 {[%emt 0:00:30]} 23. Rad1 d4 {[%emt 0:00:30]} 24. c3 Qd5 {[%emt 0:00:30]} 25. c4 bxc4 {[%emt 0:00:30]} 26. bxc4 Qc5 {[%emt 0:00:30]} 27. Qh4 Kg7 {[%emt 0:00:30]} 28. Qg4+ Kh8 {[%emt 0:00:30]} 29. f5 Rfe8 {[%emt 0:00:30]} 30. Re4 Rxe4 {[%emt 0:00:30]} 31. Qxe4 Rb8 {[%emt 0:00:30]} 32. Bc1 d3+ {[%emt 0:00:30]} 33. Kg2 Ne5 {[%emt 0:00:30]} 34. Bh6 Rd8 {[%emt 0:00:30]} 35. Qh4 Qc6+ {[%emt 0:00:30]} 36. Kh3 Rg8 {[%emt 0:00:30]} 37. Rb1 Nf3 {[%emt 0:00:30]} 38. Qh5 Ng5+ {[%emt 0:00:30]} 39. Bxg5 fxg5 {[%emt 0:00:30]} 40. Qg4 h6 {[%emt 0:00:30]} 41. Qd4+ Kh7 {[%emt 0:00:30]} 42. f6 Rg6 {[%emt 0:00:30]} 43. Rf1 g4+ {[%emt 0:00:30]} 44. Kh4 Qg2 {[%emt 0:00:30]} 0-1

[Event "1000GM Spring IM-C 2024"]
[Site "New York"]
[Date "2024.03.29"]
[Round "4.1"]
[White "Pang, Qi"]
[Black "Lekic, Dusan"]
[Result "1/2-1/2"]
[ECO "D00"]
[WhiteElo "2195"]
[BlackElo "2320"]
[Annotator "RC"]
[PlyCount "36"]
[EventDate "2024.03.26"]
[EventType "tourn"]
[EventCountry "USA"]
[SourceTitle "playchess.com"]
[Source "ChessBase"]
[SourceQuality "1"]
[TimeControl "5400+30"]

1. Nf3 {[%emt 0:01:34]} d5 {[%emt 0:00:23]} 2. d4 {[%emt 0:00:06]} Nf6 {[%emt 0:00:32]} 3. Bg5 {[%emt 0:01:15]} c5 {[%emt 0:02:43]} 4. e3 {[%emt 0:00:22]} Nc6 {[%emt 0:00:45]} 5. Bxf6 {[%emt 0:03:09]} gxf6 {[%emt 0:00:08]} 6. c3 {[%emt 0:00:44]} e5 {[%emt 0:09:08]} 7. dxe5 {[%emt 0:20:37]} fxe5 {[%emt 0:00:11]} 8. e4 {[%emt 0:00:23]} dxe4 {[%emt 0:09:19]} 9. Qxd8+ {[%emt 0:00:10]} Kxd8 {[%emt 0:00:05]} 10. Ng5 {[%emt 0:00:26]} Ke7 {[%emt 0:00:45]} 11. Nxe4 {[%emt 0:03:38]} b6 {[%emt 0:01:03]} 12. Ng3 {[%emt 0:07:19]} f5 {[%emt 0:06:36]} 13. Bb5 {[%emt 0:01:13]} Nd8 {[%emt 0:01:04]} 14. a4 {[%emt 0:03:38]} Kf6 {[%emt 0:07:40]} 15. f3 {[%emt 0:01:51]} h5 {[%emt 0:03:53]} 16. h4 {[%emt 0:09:18]} Bd6 {[%emt 0:04:03]} 17. Kf2 {[%emt 0:02:16]} Be6 {[%emt 0:03:16]} 18. Nd2 {[%emt 0:02:55]} Nf7 {[%emt 0:47:56]} 1/2-1/2

[Event "1000GM Spring IM-C 2024"]
[Site "New York"]
[Date "2024.03.29"]
[Round "4.2"]
[White "Atwell, Rose"]
[Black "Andrews, Todd"]
[Result "0-1"]
[ECO "C01"]
[WhiteElo "2285"]
[BlackElo "2160"]
[Annotator "RC"]
[PlyCount "56"]
[EventDate "2024.03.26"]
[EventType "tourn"]
[EventCountry "USA"]
[SourceTitle "playchess.com"]
[Source "ChessBase"]
[SourceQuality "1"]
[TimeControl "5400+30"]

1. e4 {[%emt 0:00:01]} e6 {[%emt 0:11:13]} 2. d4 {[%emt 0:00:06]} d5 {[%emt 0:00:09]} 3. exd5 {[%emt 0:00:05]} exd5 {[%emt 0:00:10]} 4. Nf3 {[%emt 0:00:07]} Bd6 {[%emt 0:01:10]} 5. c4 {[%emt 0:00:11]} Nf6 {[%emt 0:00:13]} 6. Nc3 {[%emt 0:00:35]} h6 {[%emt 0:00:41]} 7. cxd5 {[%emt 0:04:16]} O-O {[%emt 0:00:33]} 8. Be2 {[%emt 0:02:15]} Re8 {[%emt 0:05:23]} 9. O-O {[%emt 0:00:18]} Nbd7 {[%emt 0:03:24]} 10. Bc4 {[%emt 0:04:39]} Nb6 {[%emt 0:03:31]} 11. Bb3 {[%emt 0:01:52]} Bg4 {[%emt 0:07:11]} 12. h3 {[%emt 0:05:28]} Bh5 {[%emt 0:03:56]} 13. g4 {[%emt 0:08:54]} Nxg4 {[%emt 0:18:32]} 14. hxg4 {[%emt 0:00:08]} Bxg4 {[%emt 0:00:06]} 15. Qd3 {[%emt 0:07:56]} Qf6 {[%emt 0:01:50]} 16. Ne5 {[%emt 0:11:13]} Bxe5 {[%emt 0:00:38]} 17. dxe5 {[%emt 0:00:07]} Rxe5 {[%emt 0:00:21]} 18. Qg3 {[%emt 0:05:10]} Bf3 {[%emt 0:07:33]} 19. Bd1 {[%emt 0:05:46]} Rf5 {[%emt 0:02:36]} 20. Bxf3 {[%emt 0:03:31]} Rxf3 {[%emt 0:00:04]} 21. Qg4 {[%emt 0:02:10]} Re8 {[%emt 0:06:31]} 22. Be3 {[%emt 0:05:47]} Nc4 {[%emt 0:13:49]} 23. Ne4 {[%emt 0:13:18]} Rxe4 {[%emt 0:06:04]} 24. Qxe4 {[%emt 0:00:11]} Nxe3 {[%emt 0:00:26]} 25. fxe3 {[%emt 0:03:41]} Qg5+ {[%emt 0:00:20]} 26. Kh2 {[%emt 0:00:11]} Rxe3 {[%emt 0:02:22]} 27. Qd4 {[%emt 0:05:48]} Qg3+ {[%emt 0:00:40]} 28. Kh1 {[%emt 0:00:02]} Re2 {[%emt 0:00:20]} 0-1

[Event "1000GM Spring IM-C 2024"]
[Site "New York"]
[Date "2024.03.29"]
[Round "4.3"]
[White "Tang, Zoey"]
[Black "Yudasin, Leonid"]
[Result "1/2-1/2"]
[ECO "E15"]
[WhiteElo "2253"]
[BlackElo "2337"]
[Annotator "RC"]
[PlyCount "53"]
[EventDate "2024.03.26"]
[EventType "tourn"]
[EventCountry "USA"]
[SourceTitle "playchess.com"]
[Source "ChessBase"]
[SourceQuality "1"]
[TimeControl "5400+30"]

1. d4 {[%emt 0:00:48]} Nf6 {[%emt 0:00:13]} 2. c4 {[%emt 0:00:10]} e6 {[%emt 0:00:03]} 3. Nf3 {[%emt 0:00:05]} b6 {[%emt 0:00:03]} 4. g3 {[%emt 0:00:06]} Ba6 {[%emt 0:00:05]} 5. Qc2 {[%emt 0:00:06]} Bb7 {[%emt 0:00:29]} 6. Bg2 {[%emt 0:00:06]} c5 {[%emt 0:00:03]} 7. d5 {[%emt 0:00:05]} exd5 {[%emt 0:00:08]} 8. cxd5 {[%emt 0:00:03]} Nxd5 {[%emt 0:03:03]} 9. O-O {[%emt 0:00:06]} Nc6 {[%emt 0:00:53]} 10. Rd1 {[%emt 0:04:13]} Be7 {[%emt 0:05:31]} 11. Qf5 {[%emt 0:00:46]} Nf6 {[%emt 0:02:55]} 12. Nc3 {[%emt 0:01:02]} d6 {[%emt 0:08:16]} 13. e4 {[%emt 0:11:10]} Qc8 {[%emt 0:01:07]} 14. Qf4 {[%emt 1:18:44]} O-O {[%emt 0:00:53]} 15. Nd5 {[%emt 0:00:00]} Nxd5 {[%emt 0:01:04]} 16. exd5 {[%emt 0:00:00]} Nb4 {[%emt 0:06:20]} 17. Nh4 {[%emt 0:00:00]} g6 {[%emt 0:02:47]} 18. Bd2 {[%emt 0:00:00]} Qd8 {[%emt 0:07:44]} 19. Bxb4 {[%emt 0:00:00]} cxb4 {[%emt 0:00:45]} 20. Nf3 {[%emt 0:00:00]} Bf6 {[%emt 0:00:59]} 21. Qxb4 {[%emt 0:00:00]} Rc8 {[%emt 0:00:50]} 22. Nd4 {[%emt 0:00:00]} Bxd4 {[%emt 0:00:30]} 23. Qxd4 {[%emt 0:00:00]} Re8 {[%emt 0:00:06]} 24. h4 {[%emt 0:00:00]} Qe7 {[%emt 0:02:31]} 25. Rac1 {[%emt 0:00:00]} Rxc1 {[%emt 0:01:49]} 26. Rxc1 {[%emt 0:00:00]} Rc8 {[%emt 0:00:13]} 27. Rxc8+ {[%emt 0:00:00]} 1/2-1/2